fUST/lending_fUST_20260423
["ID","MTS","AMOUNT","RATE_DAILY","PERIOD"]
[420994025,1776877839386,-1036.18,0.00016998,2]
[420994026,1776877839395,-1036.18,0.00016998,2]
[420994027,1776877839405,-1036.19941131,0.00016998,2]
[420994028,1776877839415,-591.09,0.00016998,2]
[420994029,1776877839425,-591.09,0.00016998,2]
[420994030,1776877839434,-591.09,0.00016998,2]
[420994031,1776877839443,-591.09,0.00016998,2]
[420994032,1776877839453,-591.09,0.00016998,2]
[420994033,1776877839462,-591.09,0.00016998,2]
[420994034,1776877839472,-591.09,0.00016998,2]
[420994035,1776877839481,-591.09,0.00016998,2]
[420994036,1776877839491,-591.09,0.00016998,2]
[420994037,1776877839501,-591.09,0.00016998,2]
[420994038,1776877839510,-591.09,0.00016998,2]
[420994039,1776877839519,-591.09,0.00016998,2]
[420994040,1776877839530,-591.09,0.00016998,2]
[420994041,1776877839540,-591.09,0.00016998,2]
[420994042,1776877839549,-591.09,0.00016998,2]
[420994043,1776877839559,-591.09,0.00016998,2]
[420994044,1776877839569,-591.09,0.00016998,2]
[420994045,1776877839578,-591.09,0.00016998,2]
[420994046,1776877839588,-591.09,0.00016998,2]
[420994047,1776877839598,-591.09,0.00016998,2]
[420994048,1776877839608,-591.10593393,0.00016998,2]
[420994049,1776877839618,-592.55,0.00016998,2]
[420994050,1776877839627,-592.55,0.00016998,2]
[420994051,1776877839637,-592.55,0.00016998,2]
[420994052,1776877839646,-592.55,0.00016998,2]
[420994053,1776877839655,-592.55,0.00016998,2]
[420994054,1776877839665,-592.55,0.00016998,2]
[420994055,1776877839674,-592.55,0.00016998,2]
[420994056,1776877839683,-592.55,0.00016998,2]
[420994057,1776877839692,-592.55,0.00016998,2]
[420994058,1776877839701,-592.55,0.00016998,2]
[420994059,1776877839710,-592.55,0.00016998,2]
[420994060,1776877839720,-592.55,0.00016998,2]
[420994061,1776877839729,-592.55,0.00016998,2]
[420994062,1776877839739,-592.55,0.00016998,2]
[420994063,1776877839748,-592.55,0.00016998,2]
[420994064,1776877839757,-592.55,0.00016998,2]
[420994065,1776877839767,-592.55,0.00016998,2]
[420994066,1776877839776,-592.55,0.00016998,2]
[420994067,1776877839786,-592.55,0.00016998,2]
[420994068,1776877839795,-592.55,0.00016998,2]
[420994069,1776877839805,-2652.99,0.00016998,2]
[420994070,1776877839815,-2652.99,0.00016998,2]
[420994071,1776877839824,-2652.99,0.00016998,2]
[420994072,1776877839833,-2652.99,0.00016998,2]
[420994094,1776877840094,-2652.99,0.00016998,2]
[420994096,1776877840106,-2652.99,0.00016998,2]
[420994098,1776877840115,-2652.99,0.00016998,2]
[420994100,1776877840125,-2652.99,0.00016998,2]
[420994102,1776877840134,-2652.99,0.00016998,2]
[420994104,1776877840144,-2652.99,0.00016998,2]
[420994106,1776877840154,-2652.99,0.00016998,2]
[420994108,1776877840164,-2652.99,0.00016998,2]
[420994110,1776877840174,-2652.99,0.00016998,2]
[420994112,1776877840183,-2652.99,0.00016998,2]
[420994114,1776877840193,-2652.99,0.00016998,2]
[420994116,1776877840202,-2652.99,0.00016998,2]
[420994118,1776877840211,-592.56779178,0.00016998,2]
[420994120,1776877840220,-2652.99,0.00016998,2]
[420994122,1776877840229,-2652.99,0.00016998,2]
[420994124,1776877840238,-2652.99,0.00016998,2]
[420994126,1776877840248,-2652.99,0.00016998,2]
[420994128,1776877840257,-2653.0730815,0.00016998,2]
[420994130,1776877840267,-151.0,0.00017,2]
[420994132,1776877840279,-151.0,0.00017,2]
[420994134,1776877840288,-151.0,0.00017,2]
[420994136,1776877840297,-151.0,0.00017,2]
[420994138,1776877840307,-151.0,0.00017,2]
[420994140,1776877840315,-2653.95189,0.00017,2]
[420994142,1776877840325,-1104.34,0.00017,2]
[420994144,1776877840334,-151.0,0.00017,2]
[420994146,1776877840343,-151.0,0.00017,2]
[420994149,1776877840353,-151.0,0.00017,2]
[420994151,1776877840362,-151.0,0.00017,2]
[420994153,1776877840371,-151.0,0.00017,2]
[420994155,1776877840381,-151.0,0.00017,2]
[420994157,1776877840390,-151.0,0.00017,2]
[420994159,1776877840399,-151.0,0.00017,2]
[420994161,1776877840408,-151.0,0.00017,2]
[420994163,1776877840418,-151.0,0.00017,2]
[420994165,1776877840427,-17534.66173887,0.00017,2]
[420994167,1776877840437,-151.0,0.00017,2]
[420994169,1776877840446,-585.258,0.00017046,30]
[420994171,1776877840455,-218.40886571,0.00017099,2]
[420994173,1776877840464,-1129.69,0.00017099,2]
[420994175,1776877840473,-151.0,0.000171,2]
[420994177,1776877840483,-1129.69,0.00017115,2]
[420994179,1776877840492,-1129.69,0.00017115,2]
[420994181,1776877840502,-1129.69,0.00017115,2]
[420994183,1776877840511,-1129.69,0.00017115,2]
[420994185,1776877840520,-1129.69,0.00017115,2]
[420994187,1776877840529,-151.0,0.00017115,2]
[420994189,1776877840539,-151.0,0.00017115,2]
[420994191,1776877840548,-164.653978,0.00017115,2]
[420994193,1776877840557,-1129.69,0.00017116,2]
[420994195,1776877840566,-1129.69,0.00017116,2]
[420994197,1776877840575,-1129.69,0.00017116,2]
[420994199,1776877840585,-1129.69,0.00017116,2]
[420994201,1776877840594,-1129.69,0.00017116,2]
[420994203,1776877840603,-1129.69,0.00017116,2]
[420994205,1776877840615,-1129.69,0.00017116,2]
[420994207,1776877840624,-1129.69,0.00017116,2]
[420994209,1776877840633,-1129.69,0.00017116,2]
[420994211,1776877840643,-1129.69,0.00017116,2]
[420994213,1776877840652,-1129.69,0.00017116,2]
[420994215,1776877840662,-1129.69,0.00017116,2]
[420994217,1776877840671,-1129.69,0.00017116,2]
[420994219,1776877840681,-1129.69,0.00017116,2]
[420994221,1776877840691,-1129.69,0.00017116,2]
[420994223,1776877840700,-1129.88003166,0.00017116,2]
[420994225,1776877840709,-151.0,0.000172,2]
[420994227,1776877840723,-151.0,0.000172,2]
[420994229,1776877840741,-160.0,0.0001721,7]
[420994230,1776877840755,-917.407332,0.0001721,7]
[420994232,1776877840764,-1674.814664,0.0001721,7]
[420994235,1776877840775,-160.0,0.0001721,2]
[420994237,1776877840784,-403.98691,0.0001721,2]
[420994239,1776877840793,-647.973821,0.0001721,2]
[420994241,1776877840803,-219.468054,0.0001721,7]
[420994243,1776877840812,-585.258,0.00017218,30]
[420994245,1776877840821,-1596.1360144,0.00017218,2]
[420994246,1776877840831,-8651.36405201,0.00017218,2]
[420994249,1776877840845,-421.78785409,0.00017218,2]
[420994251,1776877840854,-4447.86764375,0.00017218,2]
[420994253,1776877840866,-41666.40038653,0.00017218,2]
[420994293,1776877841237,-3486.63181655,0.00017218,2]
[420994295,1776877841252,-5439.87819577,0.00017218,2]
[420994297,1776877841263,-151.0,0.00017218,2]
[420994299,1776877841272,-899.76063343,0.00017218,2]
[420994498,1776877843351,-233.44033157,0.00017218,2]
[420994500,1776877843361,-1133.200965,0.00017218,2]
[420994502,1776877843370,-1133.200965,0.00017218,2]
[420994504,1776877843380,-1133.200965,0.00017218,2]
[420994506,1776877843389,-5000.0,0.00017218,2]
[420994508,1776877843398,-1366.95677343,0.00017218,2]
[420994510,1776877843414,-1000.54076,0.00017218,2]
[420994782,1776877846311,-709.05352591,0.00017218,2]
[420994787,1776877846353,-1923.44894066,0.00017218,2]
[420994789,1776877846362,-646.63612294,0.00017218,2]
[420994791,1776877846373,-2703.64042606,0.00017218,2]
[420994793,1776877846382,-1000.0,0.00017218,2]
[420994795,1776877846391,-1000.0,0.00017218,2]
[420994797,1776877846400,-1000.0,0.00017218,2]
[420994799,1776877846410,-1000.0,0.00017218,2]
[420994801,1776877846419,-1000.0,0.00017218,2]
[420994803,1776877846429,-1000.0,0.00017218,2]
[420994805,1776877846438,-1000.0,0.00017218,2]
[420994808,1776877846449,-1000.0,0.00017218,2]
[420994809,1776877846458,-1000.0,0.00017218,2]
[420994811,1776877846468,-1000.0,0.00017218,2]
[420994813,1776877846477,-1000.0,0.00017218,2]
[420994815,1776877846487,-1000.0,0.00017218,2]
[420994817,1776877846496,-1000.0,0.00017218,2]
[420994819,1776877846506,-756.39359825,0.00017218,2]
[420994821,1776877846516,-151.0,0.00017218,2]
[420994823,1776877846526,-151.0,0.00017218,2]
[420994825,1776877846536,-247.083392,0.00017218,2]
[420994827,1776877846545,-247.083392,0.00017218,2]
[420994829,1776877846554,-247.083392,0.00017218,2]
[420994831,1776877846564,-247.083392,0.00017218,2]
[420994833,1776877846574,-151.0,0.00017218,2]
[420994835,1776877846583,-151.00000001,0.00017218,2]
[420994838,1776877846593,-245.208075,0.00017223,7]
[420994840,1776877846603,-585.258,0.00017273,30]
[420994842,1776877846613,-585.258,0.00017293,30]
[420994844,1776877846623,-151.0,0.000173,2]
[420994846,1776877846633,-4786.63379694,0.00017318,2]
[420994848,1776877846642,-209.616,0.00017414,2]
[420994850,1776877846653,-3152.0224276,0.00017415,2]
[420994851,1776877846663,-469.8,0.00017415,2]
[420994853,1776877846672,-469.8,0.00017415,2]
[420994855,1776877846681,-469.8,0.00017415,2]
[420994857,1776877846691,-469.8,0.00017415,2]
[420994859,1776877846700,-151.0,0.00017415,2]
[420994861,1776877846710,-415.254808,0.00017415,2]
[420994863,1776877846719,-415.254808,0.00017415,2]
[420994865,1776877846729,-415.254808,0.00017415,2]
[420994867,1776877846739,-151.0,0.00017415,2]
[420994869,1776877846749,-415.254808,0.00017415,2]
[420994871,1776877846761,-151.0,0.00017415,2]
[420994873,1776877846771,-151.0,0.00017415,2]
[420994875,1776877846781,-151.0,0.00017415,2]
[420994877,1776877846790,-336.549469,0.00017415,2]
[420994879,1776877846799,-1389.224697,0.00017415,2]
[420994881,1776877846809,-336.549469,0.00017415,2]
[420994883,1776877846818,-1389.224697,0.00017415,2]
[420994885,1776877846828,-336.549469,0.00017415,2]
[420994887,1776877846837,-1389.224697,0.00017415,2]
[420994889,1776877846847,-336.549469,0.00017415,2]
[420994891,1776877846857,-1389.224697,0.00017415,2]
[420994893,1776877846866,-3593.124789,0.00017415,2]
[420994895,1776877846876,-3593.124789,0.00017415,2]
[420994897,1776877846886,-3593.124789,0.00017415,2]
[420994899,1776877846895,-1133.200965,0.00017415,2]
[420994927,1776877847159,-3593.124789,0.00017415,2]
[420994930,1776877847170,-1133.200965,0.00017415,2]
[420994932,1776877847180,-1133.200965,0.00017415,2]
[420994934,1776877847190,-1133.200965,0.00017415,2]
[420994936,1776877847199,-151.0,0.00017415,2]
[420994938,1776877847208,-151.0,0.00017415,2]
[420994940,1776877847218,-228.557252,0.00017415,2]
[420994942,1776877847227,-151.0,0.00017415,2]
[420994944,1776877847237,-151.0,0.00017415,2]
[420994946,1776877847247,-151.0,0.00017415,2]
[420994948,1776877847256,-151.0,0.00017415,2]
[420994950,1776877847267,-475.516758,0.00017415,2]
[420994951,1776877847277,-151.0,0.00017415,2]
[420994953,1776877847286,-220.43611,0.00017415,2]
[420994955,1776877847295,-151.0,0.00017415,2]
[420994957,1776877847305,-667.601712,0.00017415,2]
[420994959,1776877847314,-475.516758,0.00017415,2]
[420994961,1776877847323,-151.0,0.00017415,2]
[420994963,1776877847333,-667.601712,0.00017415,2]
[420994965,1776877847342,-475.516758,0.00017415,2]
[420994967,1776877847351,-667.601712,0.00017415,2]
[420994969,1776877847361,-151.0,0.00017415,2]
[420994971,1776877847371,-475.516758,0.00017415,2]
[420994973,1776877847380,-667.601712,0.00017415,2]
[420994975,1776877847390,-151.0,0.00017415,2]
[420994977,1776877847400,-151.261877,0.00017417,2]
[420994979,1776877847409,-415.254808,0.00017417,2]
[420994981,1776877847419,-415.254808,0.00017417,2]
[420994983,1776877847428,-415.254808,0.00017417,2]
[420994985,1776877847437,-151.0,0.00017417,2]
[420994987,1776877847447,-415.254808,0.00017417,2]
[420994989,1776877847456,-151.0,0.00017418,2]
[420994991,1776877847466,-151.0,0.00017418,2]
[420994993,1776877847475,-295.24234588,0.00017418,2]
[420994995,1776877847485,-469.8,0.00017418,2]
[420994997,1776877847494,-469.8,0.00017418,2]
[420994999,1776877847504,-469.8,0.00017418,2]
[420995001,1776877847514,-469.8,0.00017418,2]
[420995003,1776877847523,-469.8,0.00017418,2]
[420995005,1776877847532,-469.8,0.00017418,2]
[420995007,1776877847541,-469.8,0.00017418,2]
[420995009,1776877847550,-469.8,0.00017418,2]
[420995011,1776877847559,-415.254808,0.00017418,2]
[420995013,1776877847569,-415.254808,0.00017418,2]
[420995015,1776877847578,-415.254808,0.00017418,2]
[420995017,1776877847587,-415.254808,0.00017418,2]
[420995019,1776877847596,-415.254808,0.00017418,2]
[420995021,1776877847605,-415.254808,0.00017418,2]
[420995023,1776877847614,-249.65154,0.00017418,2]
[420995025,1776877847623,-415.254808,0.00017418,2]
[420995027,1776877847633,-415.254808,0.00017418,2]
[420995029,1776877847642,-151.0,0.00017418,2]
[420995031,1776877847652,-151.0,0.00017418,2]
[420995033,1776877847661,-151.0,0.00017418,2]
[420995035,1776877847670,-151.0,0.00017418,2]
[420995037,1776877847680,-151.0,0.00017418,2]
[420995039,1776877847689,-151.0,0.00017418,2]
[420995041,1776877847698,-336.549469,0.00017418,2]
[420995043,1776877847707,-336.549469,0.00017418,2]
[420995045,1776877847716,-1389.224697,0.00017418,2]
[420995047,1776877847725,-1389.224697,0.00017418,2]
[420995049,1776877847734,-336.549469,0.00017418,2]
[420995051,1776877847744,-336.549469,0.00017418,2]
[420995053,1776877847754,-1389.224697,0.00017418,2]
[420995055,1776877847763,-1389.224697,0.00017418,2]
[420995057,1776877847773,-336.549469,0.00017418,2]
[420995059,1776877847783,-336.549469,0.00017418,2]
[420995061,1776877847792,-1389.224697,0.00017418,2]
[420995063,1776877847801,-1389.224697,0.00017418,2]
[420995065,1776877847811,-336.549469,0.00017418,2]
[420995067,1776877847820,-336.549469,0.00017418,2]
[420995069,1776877847830,-1389.224697,0.00017418,2]
[420995071,1776877847839,-1389.224697,0.00017418,2]
[420995073,1776877847849,-3593.124789,0.00017418,2]
[420995075,1776877847858,-3593.124789,0.00017418,2]
[420995077,1776877847868,-3593.124789,0.00017418,2]
[420995079,1776877847877,-3593.124789,0.00017418,2]
[420995081,1776877847886,-3593.124789,0.00017418,2]
[420995083,1776877847895,-3593.124789,0.00017418,2]
[420995085,1776877847905,-1133.200965,0.00017418,2]
[420995087,1776877847915,-3593.124789,0.00017418,2]
[420995089,1776877847925,-1133.200965,0.00017418,2]
[420995091,1776877847934,-3593.124789,0.00017418,2]
[420995093,1776877847944,-1133.200965,0.00017418,2]
[420995095,1776877847954,-1133.200965,0.00017418,2]
[420995097,1776877847963,-1133.200965,0.00017418,2]
[420995099,1776877847973,-1133.200965,0.00017418,2]
[420995101,1776877847982,-1133.200965,0.00017418,2]
[420995103,1776877847991,-1133.200965,0.00017418,2]
[420995105,1776877848001,-151.0,0.00017418,2]
[420995107,1776877848011,-151.0,0.00017418,2]
[420995110,1776877848021,-151.0,0.00017418,2]
[420995112,1776877848031,-170.230445,0.00017418,2]
[420995113,1776877848040,-247.083392,0.00017418,2]
[420995115,1776877848049,-247.083392,0.00017418,2]
[420995117,1776877848059,-247.083392,0.00017418,2]
[420995119,1776877848069,-247.083392,0.00017418,2]
[420995121,1776877848078,-247.083392,0.00017418,2]
[420995123,1776877848088,-247.083392,0.00017418,2]
[420995126,1776877848098,-247.083392,0.00017418,2]
[420995128,1776877848108,-247.083392,0.00017418,2]
[420995130,1776877848117,-500.0,0.00017421,2]
[420995131,1776877848127,-918.70966276,0.00017428,2]
[420995132,1776877848136,-461.0426277,0.00017434,2]
[420995133,1776877848146,-278.2103589,0.00017434,2]
[420995134,1776877848156,-151.0,0.00017462,2]
[420995135,1776877848165,-151.0,0.00017462,2]
[420995136,1776877848175,-257.719852,0.00017462,2]
[420995137,1776877848185,-336.549469,0.00017462,2]
[420995138,1776877848194,-1389.224697,0.00017462,2]
[420995139,1776877848203,-336.549469,0.00017462,2]
[420995140,1776877848214,-1389.224697,0.00017462,2]
[420995141,1776877848225,-336.549469,0.00017462,2]
[420995142,1776877848235,-1389.224697,0.00017462,2]
[420995143,1776877848245,-336.549469,0.00017462,2]
[420995144,1776877848257,-1389.224697,0.00017462,2]
[420995145,1776877848267,-3593.124789,0.00017462,2]
[420995146,1776877848277,-3593.124789,0.00017462,2]
[420995148,1776877848286,-3593.124789,0.00017462,2]
[420995150,1776877848295,-3593.124789,0.00017462,2]
[420995152,1776877848305,-2524.67130843,0.00017462,2]
[420995154,1776877848314,-2700.73130205,0.00017462,2]
[420995156,1776877848323,-459.81867153,0.00017498,7]
[420995158,1776877848333,-2524.67130843,0.00017519,7]
[420995159,1776877848342,-2700.73130205,0.00017519,7]
[420995161,1776877848352,-500.0,0.00017521,2]
[420995163,1776877848363,-500.0,0.00017521,2]
[420995165,1776877848372,-500.0,0.00017521,2]
[420995167,1776877848382,-1000.0,0.00017521,2]
[420995168,1776877848391,-918.70966276,0.00017522,7]
[420995169,1776877848400,-184.0,0.00017548,2]
[420995170,1776877848409,-151.0,0.00017561,2]
[420995171,1776877848419,-469.8,0.00017561,2]
[420995172,1776877848428,-469.8,0.00017561,2]
[420995173,1776877848437,-469.8,0.00017561,2]
[420995174,1776877848446,-469.8,0.00017561,2]
[420995175,1776877848456,-415.254808,0.00017561,2]
[420995176,1776877848465,-415.254808,0.00017561,2]
[420995177,1776877848474,-415.254808,0.00017561,2]
[420995178,1776877848483,-415.254801,0.00017561,2]
[420995179,1776877848493,-151.0,0.00017561,2]
[420995180,1776877848502,-151.0,0.00017561,2]
[420995181,1776877848511,-336.549469,0.00017561,2]
[420995182,1776877848520,-1389.224697,0.00017561,2]
[420995183,1776877848530,-336.549469,0.00017561,2]
[420995184,1776877848539,-1389.224697,0.00017561,2]
[420995185,1776877848549,-336.549469,0.00017561,2]
[420995186,1776877848558,-1389.224697,0.00017561,2]
[420995187,1776877848567,-336.54947,0.00017561,2]
[420995188,1776877848577,-1389.224695,0.00017561,2]
[420995189,1776877848587,-3593.124789,0.00017561,2]
[420995190,1776877848596,-3593.124789,0.00017561,2]
[420995191,1776877848605,-3593.124789,0.00017561,2]
[420995192,1776877848615,-1133.200965,0.00017561,2]
[420995193,1776877848624,-3593.124787,0.00017561,2]
[420995194,1776877848633,-1133.200965,0.00017561,2]
[420995195,1776877848643,-1133.200965,0.00017561,2]
[420995196,1776877848652,-1133.200974,0.00017561,2]
[420995197,1776877848662,-151.0,0.00017561,2]
[420995198,1776877848671,-247.083392,0.00017561,2]
[420995199,1776877848680,-247.083392,0.00017561,2]
[420995200,1776877848691,-247.083392,0.00017561,2]
[420995201,1776877848700,-247.083392,0.00017561,2]
[420995202,1776877848709,-151.0,0.00017561,2]
[420995203,1776877848718,-151.0,0.00017561,2]
[420995204,1776877848727,-2524.67130843,0.00017575,7]
[420995205,1776877848736,-2700.73130205,0.00017575,7]
[420995206,1776877848745,-151.0,0.00017575,2]
[420995207,1776877848755,-151.0,0.00017575,2]
[420995208,1776877848764,-151.0,0.00017575,2]
[420995209,1776877848773,-299.294438,0.00017575,2]
[420995210,1776877848782,-475.516758,0.00017575,2]
[420995211,1776877848791,-151.0,0.00017575,2]
[420995212,1776877848800,-151.0,0.00017575,2]
[420995213,1776877848810,-667.601712,0.00017575,2]
[420995214,1776877848819,-475.516758,0.00017575,2]
[420995215,1776877848829,-151.0,0.00017575,2]
[420995216,1776877848839,-667.601712,0.00017575,2]
[420995217,1776877848848,-475.516758,0.00017575,2]
[420995218,1776877848858,-667.601712,0.00017575,2]
[420995219,1776877848867,-151.0,0.00017575,2]
[420995220,1776877848876,-475.516758,0.00017575,2]
[420995221,1776877848886,-667.601712,0.00017575,2]
[420995222,1776877848895,-151.0,0.00017575,2]
[420995223,1776877848905,-220.43611,0.00017575,2]
[420995224,1776877848914,-459.81867153,0.00017601,7]
[420995225,1776877848924,-720.0,0.00017603,2]
[420995226,1776877848933,-155.0,0.00017607,2]
[420995227,1776877848942,-918.70966276,0.00017617,7]
[420995228,1776877848952,-461.0426277,0.00017631,7]
[420995229,1776877848961,-278.2103589,0.00017631,7]
[420995230,1776877848970,-2524.67130843,0.00017631,7]
[420995231,1776877848980,-2700.73130205,0.00017631,7]
[420995232,1776877848989,-1971.284034,0.00017672,2]
[420995233,1776877848998,-2524.67130843,0.00017687,7]
[420995234,1776877849008,-2700.73130205,0.00017687,7]
[420995235,1776877849019,-459.81867153,0.00017704,14]
[420995236,1776877849028,-918.70966276,0.00017712,7]
[420995237,1776877849038,-2524.67130843,0.00017743,7]
[420995238,1776877849047,-2700.73130205,0.00017743,7]
[420995239,1776877849056,-2524.67130843,0.00017799,7]
[420995240,1776877849066,-2700.73130205,0.00017799,7]
[420995241,1776877849075,-155.0,0.00017801,2]
[420995242,1776877849084,-918.70966276,0.00017807,7]
[420995243,1776877849093,-459.81867153,0.00017808,14]
[420995244,1776877849102,-461.0426277,0.00017827,7]
[420995245,1776877849111,-278.2103589,0.00017827,7]
[420995246,1776877849121,-2524.67130843,0.00017855,7]
[420995247,1776877849130,-2700.73130205,0.00017855,7]
[420995248,1776877849139,-918.70966276,0.00017901,7]
[420995249,1776877849148,-2524.67130843,0.00017911,7]
[420995250,1776877849157,-2700.73130205,0.00017911,7]
[420995251,1776877849166,-459.81867153,0.00017911,14]
[420995252,1776877849176,-455.7290828,0.00017944,2]
[420995253,1776877849185,-2524.67130843,0.00017967,7]
[420995254,1776877849195,-2700.73130205,0.00017967,7]
[420995255,1776877849204,-469.8,0.00017967,2]
[420995256,1776877849213,-469.8,0.00017967,2]
[420995257,1776877849222,-469.8,0.00017967,2]
[420995258,1776877849232,-469.8,0.00017967,2]
[420995259,1776877849241,-155.0,0.00017994,2]
[420995260,1776877849250,-918.70966276,0.00017996,7]
[420995261,1776877849259,-459.81867153,0.00018014,30]
[420995262,1776877849269,-461.0426277,0.00018023,7]
[420995263,1776877849278,-278.2103589,0.00018023,7]
[420995264,1776877849288,-2524.67130843,0.00018023,7]
[420995265,1776877849297,-2700.73130205,0.00018023,7]
[420995266,1776877849305,-1500.0,0.00018068,2]
[420995267,1776877849314,-1251.009998,0.0001807,7]
[420995268,1776877849324,-550.891241,0.0001807,2]
[420995269,1776877849333,-2524.67130843,0.00018079,14]
[420995270,1776877849342,-2700.73130205,0.00018079,14]
[420995271,1776877849351,-918.70966276,0.00018091,14]
[420995272,1776877849360,-459.81867153,0.00018118,30]
[420995273,1776877849369,-2524.67130843,0.00018135,14]
[420995274,1776877849378,-2700.73130205,0.00018135,14]
[420995275,1776877849388,-918.70966276,0.00018185,14]
[420995276,1776877849397,-155.0,0.00018188,2]
[420995277,1776877849405,-151.0,0.00018191,2]
[420995278,1776877849414,-2524.67130843,0.00018191,14]
[420995279,1776877849423,-2700.73130205,0.00018191,14]
[420995280,1776877849432,-151.58156834,0.00018199,2]
[420995281,1776877849441,-445.202766,0.00018199,2]
[420995282,1776877849450,-537.6845,0.00018199,2]
[420995283,1776877849459,-162.380719,0.00018199,2]
[420995284,1776877849468,-162.63906551,0.00018199,2]
[420995285,1776877849478,-537.6845,0.00018199,2]
[420995286,1776877849487,-540.74130352,0.00018199,2]
[420995287,1776877849496,-2150.738,0.00018199,2]
[420995288,1776877849505,-276.42320153,0.00018199,2]
[420995289,1776877849515,-247.083392,0.00018219,2]
[420995290,1776877849524,-247.083392,0.00018219,2]
[420995291,1776877849533,-247.083392,0.00018219,2]
[420995292,1776877849543,-247.083383,0.00018219,2]
[420995293,1776877849552,-461.0426277,0.00018219,14]
[420995294,1776877849561,-278.2103589,0.00018219,14]
[420995295,1776877849570,-459.81867153,0.00018221,60]
[420995296,1776877849579,-2700.73130205,0.00018247,14]
[420995297,1776877849588,-2524.67130843,0.00018247,14]
[420995298,1776877849597,-557.5788265,0.00018254,2]
[420995299,1776877849607,-389.12757222,0.0001828,14]
[420995325,1776878105598,294.2771745,0.00024657,120]
[420995326,1776878361172,400.0,0.0002465,120]
[420995335,1776878432530,938.24025955,0.00023425,120]
[420995338,1776878433705,635.91201298,0.00024596,120]
[420995339,1776878624230,400.0,0.0002465,120]
[420995348,1776878758597,400.0,0.0002465,120]
[420995357,1776879032188,-5000.0,0.00013126,10]
[420995358,1776879032198,-279.07181833,0.00013394,2]
[420995359,1776879032208,-234.1032,0.00013631,30]
[420995360,1776879032218,-1000.0,0.00013699,2]
[420995361,1776879032228,-11308.28962249,0.00014106,2]
[420995362,1776879032252,-1036.69568593,0.00014106,2]
[420995363,1776879032263,-1033.07476878,0.00014106,2]
[420995364,1776879032279,-5458.947024,0.00014106,2]
[420995365,1776879032288,-215.4710684,0.00014272,2]
[420995366,1776879032298,-1712.25519872,0.00014918,30]
[420995367,1776879032308,-351.15480001,0.00014918,30]
[420995368,1776879032318,-1712.25519872,0.00015069,30]
[420995369,1776879032329,-2227.59043086,0.00015849,2]
[420995370,1776879032339,-5007.06639096,0.00015849,2]
[420995371,1776879032349,-845.08957986,0.00015849,2]
[420995372,1776879032358,-3376.97796113,0.00015849,2]
[420995373,1776879032367,-500.0,0.00016237,2]
[420995374,1776879032377,-693.99455887,0.00016237,2]
[420995375,1776879032386,-500.0,0.00016237,2]
[420995376,1776879032396,-693.99455887,0.00016237,2]
[420995377,1776879032406,-200.44078487,0.00016237,2]
[420995378,1776879032416,-500.0,0.00016237,2]
[420995379,1776879032425,-693.99455887,0.00016237,2]
[420995380,1776879032435,-693.99455887,0.00016237,2]
[420995381,1776879032445,-693.99455887,0.00016237,2]
[420995382,1776879032454,-693.99455887,0.00016237,2]
[420995383,1776879032464,-163557.42896519,0.00016238,2]
[420995384,1776879032484,-469.65073803,0.00016237,2]
[420995385,1776879032493,-11505.34926178,0.00016238,2]
[420995393,1776879038777,-693.99455887,0.00016237,2]
[420995394,1776879038787,-693.99455887,0.00016237,2]
[420995395,1776879038797,-693.99455887,0.00016237,2]
[420995396,1776879038807,-693.99455887,0.00016237,2]
[420995397,1776879038816,-693.99455887,0.00016237,2]
[420995398,1776879038826,-693.99455887,0.00016237,2]
[420995399,1776879038835,-693.99455887,0.00016237,2]